bitfinex/quotes_ETHUSD_20241001
["timestamp","ask_amount","ask_price","bid_price","bid_amount"]
[1727821149985,4.05838,2464.1,2463.6,4.05899]
[1727821150683,0.7409,2464.0,2463.6,4.05899]
[1727821151048,0.7409,2464.0,2463.7,4.05892]
[1727821152347,0.7409,2464.0,2463.5,8.11824]
[1727821152583,0.7409,2464.0,2463.5,8.930064]
[1727821152886,4.05869,2463.9,2463.3,4.05946]
[1727821153090,4.05869,2463.9,2463.4,4.05941]
[1727821154386,8.11741,2463.9,2463.4,4.05941]
[1727821154594,4.79934,2464.0,2463.5,4.05917]
[1727821154798,4.05862,2463.9,2463.5,4.05917]
[1727821154982,8.11735,2463.9,2463.4,4.0593]
[1727821155150,4.05862,2463.9,2463.4,4.0593]
[1727821155675,0.7409,2464.0,2463.6,4.05899]
[1727821155887,4.79938,2464.0,2463.6,4.05899]
[1727821156736,0.7409,2464.0,2463.6,4.05901]
[1727821157265,4.79938,2464.0,2463.5,4.05913]
[1727821157709,4.79938,2464.0,2463.5,8.11832]
[1727821158353,4.05861,2463.9,2463.4,5.0338916]
[1727821158573,4.05861,2463.9,2463.4,4.05941]
[1727821159181,4.05861,2463.9,2463.5,4.05925]
[1727821159377,0.7409,2464.0,2463.6,4.05909]
[1727821159378,0.21335433,2463.8,2463.6,4.05909]
[1727821159567,4.05862,2463.9,2463.4,4.05929]
[1727821159898,0.21335433,2463.7,2463.4,4.05929]
[1727821160069,4.05862,2463.9,2463.5,4.05923]
[1727821160273,0.21335433,2463.6,2463.5,4.05923]
[1727821160483,4.05862,2463.9,2463.5,4.05923]
[1727821160806,0.21335433,2463.8,2463.5,4.05923]
[1727821161605,0.7409,2463.6,2463.1,4.05985]
[1727821161807,4.80009,2463.6,2463.1,4.05985]
[1727821162304,0.21335433,2463.5,2462.9,4.06015]
[1727821162618,4.05945,2463.4,2462.9,4.06015]
[1727821162821,0.7409,2463.6,2462.7,4.06045]
[1727821162822,4.05983,2463.2,2462.7,4.06045]
[1727821163001,4.05983,2463.2,2462.7,8.12094]
[1727821163308,0.7409,2463.1,2462.7,4.06045]
[1727821163511,4.80084,2463.1,2462.7,4.06045]
[1727821163668,0.21335433,2463.0,2462.7,4.06045]
[1727821164180,0.7409,2462.9,2462.3,4.06121]
[1727821164387,4.06086,2462.6,2462.1,4.06148]
[1727821164689,4.06086,2462.6,2461.9,4.91116588]
[1727821164690,4.80181,2462.5,2461.9,8.12354]
[1727821165023,4.80181,2462.5,2461.9,8.12355]
[1727821165203,4.80181,2462.5,2462.0,4.06171]
[1727821165522,4.80181,2462.5,2461.9,4.06189]
[1727821165670,4.06132,2462.3,2461.7,4.06211]
[1727821166012,0.95333388,2462.2,2461.7,8.12424]
[1727821166168,0.95333388,2462.2,2461.7,4.06211]
[1727821166372,5.01482388,2462.2,2461.7,4.06211]
[1727821166582,5.01482388,2462.2,2461.5,4.06246]
[1727821166583,0.7409,2462.1,2461.5,4.06243]
[1727821166804,0.7409,2462.1,2461.7,4.06222]
[1727821167003,0.21243388,2462.0,2461.7,4.06222]
[1727821167214,0.21243388,2462.0,2461.1,0.762]
[1727821167215,4.06203,2461.9,2461.1,0.762]
[1727821167513,0.7409,2461.9,2461.1,4.06313]
[1727821167674,4.27445536,2461.8,2461.2,4.06296]
[1727821168108,4.06223,2461.7,2461.2,4.06296]
[1727821168490,0.21211251,2461.6,2461.2,4.06296]
[1727821169016,8.12432,2461.8,2461.2,4.06296]
[1727821169244,0.21211251,2461.5,2461.2,4.06296]
[1727821169380,8.904625,2461.8,2461.2,4.06296]
[1727821169581,0.21211251,2461.4,2461.2,4.06296]
[1727821169775,8.904625,2461.8,2461.2,4.06296]
[1727821170019,0.21211251,2461.7,2461.2,4.06296]
[1727821170802,4.27436251,2461.7,2461.2,4.06296]
[1727821171003,0.21211251,2461.7,2461.2,4.06296]
[1727821171327,0.21211251,2461.7,2461.2,8.12591]
[1727821171541,0.21211251,2461.7,2461.2,4.06295]
[1727821171692,0.21211251,2461.7,2461.3,4.06278]
[1727821172196,0.21211251,2461.6,2461.3,4.06278]
[1727821172380,4.06208,2461.8,2461.3,4.06278]
[1727821172586,0.21211251,2461.5,2461.3,4.06278]
[1727821172900,4.06208,2461.8,2461.2,4.06295]
[1727821173220,4.948562,2461.8,2461.2,4.06295]
[1727821173527,4.27444251,2461.7,2461.2,4.06295]
[1727821173710,4.80364,2461.4,2460.8,0.792]
[1727821174030,4.06326,2461.1,2460.5,0.792]
[1727821174338,4.27498819,2461.3,2460.7,4.06377]
[1727821174498,4.063,2461.3,2460.7,4.06377]
[1727821174700,0.2119839,2461.2,2460.7,4.06377]
[1727821175321,0.2119839,2461.2,2460.8,4.06368]
[1727821175745,4.06299,2461.3,2460.8,4.06368]
[1727821176061,4.0629,2461.3,2460.8,4.06362]
[1727821176205,0.211881,2461.2,2460.7,4.06385]
[1727821176519,4.06331,2461.1,2460.6,4.06395]
[1727821176915,0.7409,2461.0,2460.6,4.06395]
[1727821177114,0.952781,2461.0,2460.4,4.06428]
[1727821177417,4.06357,2460.9,2460.4,4.06428]
[1727821177604,1.2425091,2461.0,2460.6,4.06404]
[1727821177805,0.211881,2460.8,2460.7,4.06385]
[1727821178004,0.7409,2461.0,2460.7,4.06385]
[1727821178247,0.7409,2461.0,2460.6,4.06404]
[1727821178248,0.211881,2460.8,2460.6,4.06404]
[1727821178446,0.7409,2461.0,2460.6,4.06404]
[1727821178649,0.211881,2460.7,2460.6,8.12797]
[1727821178871,0.7409,2461.0,2460.6,8.12797]
[1727821179069,0.211881,2460.7,2460.6,4.06393]
[1727821179211,0.7409,2461.0,2460.7,4.06386]
[1727821180017,4.80387,2461.3,2460.8,4.0637]
[1727821180225,0.7409,2461.5,2461.0,4.06325]
[1727821180421,0.7409,2461.5,2460.8,4.0636]
[1727821180746,4.06232,2461.7,2461.2,4.06297]
[1727821180747,4.80322,2461.7,2461.2,4.06297]
[1727821181062,0.7409,2461.7,2461.3,4.06285]
[1727821181225,0.7409,2462.0,2461.5,4.06248]
[1727821181426,7.9007896,2462.4,2461.9,4.0619]
[1727821181608,8.6416896,2462.4,2461.5,4.06246]
[1727821181813,4.06165,2462.1,2461.6,4.06239]
[1727821182012,8.12312,2462.2,2461.6,4.06239]
[1727821182524,8.12312,2462.2,2461.5,8.12492]
[1727821182525,4.06167,2462.1,2461.5,8.12492]
[1727821182723,4.06167,2462.1,2461.5,9.016612]
[1727821182925,4.06167,2462.1,2461.6,4.06236]
[1727821183129,4.06167,2462.1,2461.5,4.954152]
[1727821183334,4.06167,2462.1,2461.5,4.06246]
[1727821183559,4.06156,2462.2,2461.5,4.06242]
[1727821183748,8.12307,2462.2,2461.6,4.0623]
[1727821184127,4.06175,2462.0,2461.5,8.12488]
[1727821184324,4.06151,2462.2,2461.5,4.06242]
[1727821184523,4.06151,2462.2,2461.7,4.06219]
[1727821184725,4.06151,2462.2,2461.7,8.12433]
[1727821185058,12.7028796,2462.4,2461.8,4.06203]
[1727821185235,16.7640696,2462.4,2461.8,4.06203]
[1727821185556,4.06126,2462.3,2461.8,4.06203]
[1727821185937,4.06145,2462.2,2461.7,4.06214]
[1727821186323,4.06126,2462.3,2461.7,8.12427]
[1727821186557,4.06126,2462.3,2461.8,4.06192]
[1727821186858,4.06126,2462.3,2461.7,4.9230812]
[1727821187028,4.06126,2462.3,2461.8,4.06206]
[1727821187531,0.7409,2462.4,2461.5,0.485442]
[1727821187745,0.7409,2462.4,2461.5,4.06246]
[1727821187746,4.06157,2462.1,2461.5,4.06246]
[1727821187919,4.06176,2462.0,2461.5,4.06246]
[1727821188353,4.06144,2462.2,2461.7,4.06223]
[1727821188557,4.06144,2462.2,2461.4,0.792]
[1727821188558,4.06157,2462.1,2461.5,8.12499]
[1727821189064,4.06199,2461.9,2461.4,4.85472]
[1727821189274,4.06199,2461.9,2461.4,4.06272]
[1727821189434,0.21101953,2461.8,2461.4,4.06272]
[1727821190441,0.21101953,2461.8,2461.3,4.06276]
[1727821190666,0.21101953,2461.8,2461.4,4.06272]
[1727821191237,0.21101953,2461.8,2461.5,4.06255]
[1727821191638,0.21101953,2461.8,2461.5,4.06246]
[1727821191940,4.06099,2462.5,2461.5,4.06246]
[1727821191941,0.7409,2462.3,2461.9,4.06189]
[1727821192146,0.7409,2462.3,2461.7,0.7613]
[1727821192147,0.7409,2462.6,2462.3,4.06122]
[1727821192765,0.7409,2462.6,2462.1,4.06146]
[1727821192950,0.7409,2462.6,2461.8,4.06204]
[1727821192951,5.281899,2462.6,2461.8,4.06197]
[1727821193978,4.06115,2462.4,2461.9,4.06186]
[1727821194368,5.281899,2462.6,2462.0,4.06166]
[1727821194567,5.281899,2462.6,2461.7,0.7613]
[1727821194753,4.80176,2462.6,2462.1,4.06155]
[1727821195171,4.80176,2462.6,2462.1,8.12302]
[1727821196740,4.80175,2462.6,2461.9,4.06188]
[1727821196944,8.86266,2462.6,2462.0,4.06158]
[1727821197183,4.541225,2462.5,2462.0,4.06158]
[1727821197383,4.541225,2462.5,2461.9,4.06189]
[1727821197384,4.06108,2462.4,2461.9,4.06189]
[1727821198372,4.06108,2462.4,2461.9,8.12371]
[1727821199182,8.12228,2462.4,2461.9,4.06182]
[1727821199382,4.80176,2462.6,2462.1,4.06156]
[1727821199587,0.7409,2462.6,2462.1,4.06148]
[1727821199796,0.7409,2462.6,2462.1,4.06142]
[1727821200291,0.7409,2462.6,2462.2,4.06132]
[1727821200599,0.7409,2462.9,2462.6,4.06073]
[1727821200948,0.7409,2462.9,2462.5,4.06083]
[1727821202086,4.06042,2462.8,2462.2,0.7613]
[1727821202304,4.06075,2462.6,2462.2,4.06138]
[1727821202972,4.872867,2462.6,2462.1,4.06153]
[1727821203181,4.872867,2462.6,2461.9,4.82317]
[1727821203182,4.0611,2462.4,2461.9,4.82317]
[1727821203488,0.7409,2462.3,2462.0,4.0617]
[1727821203687,0.7409,2462.3,2461.9,4.06189]
[1727821204250,4.80214,2462.3,2461.9,4.06182]
[1727821204494,0.21206547,2462.2,2461.9,4.06179]
[1727821204790,0.7409,2462.3,2462.0,4.06167]
[1727821204959,0.7409,2462.3,2461.9,4.06179]
[1727821205152,0.21206547,2462.2,2461.6,4.06234]
[1727821205357,4.06169,2462.1,2461.6,4.06234]
[1727821205550,0.21195406,2462.0,2461.6,4.06234]
[1727821205777,4.27377406,2462.0,2461.5,4.06251]
[1727821205965,0.7409,2461.9,2461.5,4.06251]
[1727821206170,1.64853641,2461.9,2461.5,4.06247]
[1727821206371,1.64853641,2461.9,2461.6,4.06238]
[1727821206573,0.21195406,2461.8,2461.6,4.06238]
[1727821207353,0.21195406,2461.8,2461.7,4.06223]
[1727821207561,4.06103,2462.5,2461.7,4.06223]
[1727821207562,4.06033,2462.9,2462.5,4.06091]
[1727821207789,0.406033,2462.8,2462.6,4.06066]
[1727821207967,0.20462185,2462.8,2462.6,4.06066]
[1727821208386,0.20462185,2462.8,2462.5,4.06091]
[1727821208595,4.06058,2462.7,2462.2,4.0614]
[1727821208773,4.06075,2462.6,2462.2,4.0614]
[1727821208976,0.20462185,2462.5,2462.2,4.0614]
[1727821209517,0.20462185,2462.5,2462.3,4.06118]
[1727821209726,0.20462185,2462.5,2462.2,4.0614]
[1727821210014,0.20462185,2462.4,2462.2,4.0614]
[1727821210184,4.06058,2462.7,2462.2,4.0614]
[1727821210388,0.20462185,2462.6,2462.2,8.12272]
[1727821210898,0.20462185,2462.6,2462.3,4.06122]
[1727821211694,4.06043,2462.8,2462.0,3.0]
[1727821211882,0.7409,2462.9,2461.9,0.7613]
[1727821211883,0.20462185,2462.5,2461.9,0.7613]
[1727821212084,0.7409,2462.9,2461.9,0.7613]
[1727821212085,4.06042,2462.8,2462.3,8.12228]
[1727821212595,0.20462185,2462.7,2462.3,8.12228]
[1727821212795,4.06042,2462.8,2462.3,8.12228]
[1727821212985,0.20462185,2462.7,2462.3,8.12228]
[1727821213188,4.06042,2462.8,2462.3,8.12228]
[1727821213527,0.20462185,2462.7,2462.3,8.12228]
[1727821213882,4.06042,2462.8,2462.4,4.06107]
[1727821214080,0.20462185,2462.6,2462.4,4.06107]
[1727821214386,4.946574,2462.8,2462.3,4.06113]
[1727821214387,0.20462185,2462.5,2462.3,4.06113]
[1727821214606,4.06061,2462.7,2462.3,4.06113]
[1727821214780,0.20462185,2462.6,2462.3,4.06113]
[1727821217008,0.7409,2462.9,2462.5,4.88121]
[1727821217205,0.20462185,2462.8,2462.6,4.06066]
[1727821217416,0.20462185,2462.8,2462.7,4.06058]
[1727821217636,0.7409,2463.2,2463.0,4.06002]
[1727821217846,8.1209,2463.8,2463.4,4.05943]
[1727821218026,0.7409,2463.8,2463.4,4.05943]
[1727821218199,0.479959,2463.7,2463.2,4.05969]
[1727821218407,4.0591,2463.6,2463.2,4.05967]
[1727821219143,0.479959,2463.7,2463.3,4.0595]
[1727821219303,4.538969,2463.7,2463.2,4.05966]
[1727821219509,4.538969,2463.7,2463.1,4.88021]
[1727821219510,4.25721248,2463.6,2463.1,4.88021]
[1727821219709,5.21092063,2463.6,2463.1,0.8203]
[1727821220047,5.21092063,2463.6,2463.1,4.8801]
[1727821220245,1.15174063,2463.6,2463.2,4.05973]
[1727821220549,0.19803248,2463.6,2463.5,4.05926]
[1727821220744,0.19803248,2463.6,2463.5,4.87956]
[1727821220967,0.7409,2464.2,2463.5,0.8203]
[1727821221114,0.7409,2464.5,2464.0,4.0583]
[1727821221315,0.7409,2464.5,2464.0,4.8786]
[1727821221513,4.05822,2464.2,2463.7,4.87922]
[1727821221746,4.0583,2464.1,2463.2,0.55]
[1727821221955,8.11669,2464.1,2463.6,4.05906]
[1727821222242,4.869969,2464.1,2463.6,4.05906]
[1727821222842,8.928379,2464.1,2463.5,4.87941]
[1727821223029,4.79935,2464.0,2463.5,4.87941]
[1727821223243,4.05876,2463.9,2463.5,0.8203]
[1727821223908,4.05879,2463.8,2463.3,8.93927]
[1727821224108,0.5611019,2463.9,2463.3,4.87976]
[1727821224344,4.6197819,2463.9,2463.3,4.87976]
[1727821224611,4.6197819,2463.9,2463.3,4.05946]
[1727821224780,4.05894,2463.7,2463.2,4.05975]
[1727821225373,4.92681219,2463.7,2463.2,4.05975]
[1727821225589,4.05935,2463.5,2462.9,4.06013]
[1727821225815,3.7409,2463.6,2462.9,4.06014]
[1727821226098,3.7409,2463.6,2462.8,4.88062]
[1727821226099,4.0596,2463.3,2462.8,4.88062]
[1727821226320,8.11928,2463.3,2462.8,4.88062]
[1727821226462,8.11928,2463.3,2462.8,4.06032]
[1727821226662,4.0596,2463.3,2462.8,4.06032]
[1727821227277,4.06012,2463.0,2462.5,4.0609]
[1727821227664,4.06002,2463.1,2462.6,4.06073]
[1727821227860,0.19157836,2462.9,2462.6,4.06073]
[1727821228094,4.06002,2463.1,2462.6,4.06073]
[1727821228295,0.19157836,2462.8,2462.4,4.88125]
[1727821228499,4.0602,2463.0,2462.5,4.06082]
[1727821228685,0.19157836,2462.7,2462.5,4.06082]
[1727821228888,4.06031,2462.9,2462.4,4.88125]
[1727821229061,0.19157836,2462.6,2462.4,4.06095]
[1727821229265,4.06031,2462.9,2462.4,4.06095]
[1727821229466,0.19167328,2462.5,2462.4,8.12194]
[1727821229664,4.06031,2462.9,2462.4,8.12194]
[1727821229899,0.19167328,2462.5,2462.4,4.06095]
[1727821230112,0.7409,2462.7,2462.4,4.06095]
[1727821230293,0.19167328,2462.5,2462.4,4.06095]
[1727821230605,4.06042,2462.8,2462.3,4.06123]
[1727821230791,0.19157841,2462.5,2462.0,4.88731]
[1727821231102,4.06084,2462.6,2462.0,4.88731]
[1727821231103,0.19157841,2462.4,2462.0,5.376021]
[1727821231271,4.06084,2462.6,2462.1,4.06154]
[1727821231476,4.25292528,2462.3,2461.8,4.06196]
[1727821231716,4.06141,2462.2,2461.7,4.06222]
[1727821231870,8.31448097,2462.2,2461.6,4.06229]
[1727821232068,5.6339581,2462.1,2461.6,4.06229]
[1727821232318,1.80434474,2462.1,2461.6,4.06229]
[1727821233271,1.80434474,2462.1,2461.6,8.12459]
[1727821233471,0.97289664,2462.1,2461.7,4.06219]
[1727821236087,5.03458664,2462.1,2461.6,4.06229]
[1727821237078,0.97289664,2462.1,2461.6,4.06229]
[1727821237278,4.06183,2462.0,2461.4,4.88831]
[1727821237475,4.06205,2461.9,2461.3,4.06278]
[1727821237722,4.29380505,2461.9,2461.3,4.06278]
[1727821238485,4.29380505,2461.9,2461.4,4.06258]
[1727821238718,0.23175505,2461.9,2461.5,4.06252]
[1727821239190,8.86427,2462.1,2461.5,4.06252]
[1727821239451,10.488697,2462.1,2461.5,4.06252]
[1727821239613,4.2929299,2462.0,2461.5,4.06252]
[1727821242332,0.2311899,2462.0,2461.5,4.06252]
[1727821242498,0.2311899,2462.0,2461.8,4.06205]
[1727821242884,0.2311899,2462.0,2461.8,4.06197]
[1727821243084,4.06124,2462.3,2461.8,8.12395]
[1727821243289,4.06124,2462.3,2461.8,4.06197]
[1727821243290,0.23121148,2461.9,2461.8,4.06197]
[1727821243516,4.06124,2462.3,2461.8,4.954054]
[1727821243794,4.06124,2462.3,2461.8,4.06197]
[1727821243996,0.23121148,2462.2,2461.8,4.06197]
[1727821244453,4.06124,2462.3,2461.8,4.06197]
[1727821244643,0.23121148,2462.1,2461.8,4.06197]
[1727821244793,0.7409,2462.4,2461.9,4.0618]
[1727821244991,0.2313021,2462.3,2461.9,4.0618]
[1727821245711,0.2313021,2462.3,2462.0,4.06172]
[1727821246316,4.2926721,2462.3,2461.8,4.06197]
[1727821246533,4.06182,2462.0,2461.5,4.06248]
[1727821246698,4.80272,2462.0,2461.5,4.06248]
[1727821247209,0.23138839,2461.9,2461.5,4.06248]
[1727821247991,4.29329839,2461.9,2461.5,4.06248]
[1727821248224,0.23138839,2461.9,2461.5,4.06248]
[1727821251237,0.23138839,2461.9,2461.7,3.71462949]
[1727821251419,4.06141,2462.2,2461.7,3.71462949]
[1727821251420,4.06141,2462.2,2461.7,4.06214]
[1727821251756,0.23127189,2462.1,2461.7,4.06214]
[1727821255149,4.29285189,2462.1,2461.7,4.06214]
[1727821255874,0.23127189,2462.1,2461.7,4.06214]
[1727821256042,0.23127189,2462.1,2461.7,5.33260951]
[1727821258877,0.23127189,2462.1,2461.7,4.06078578]
[1727821260903,0.23127189,2462.1,2462.0,4.06173]
[1727821261044,0.23127189,2462.1,2461.6,4.06239]
[1727821261045,4.06169,2462.1,2461.6,4.89219]
[1727821261240,4.80182,2462.5,2461.1,3.71462949]
[1727821261241,0.23127189,2462.0,2461.1,3.71462949]
[1727821261486,3.0,2462.6,2460.8,0.84937588]
[1727821261487,4.06273,2461.4,2460.9,4.89334]
[1727821261680,4.06316,2461.2,2460.6,4.89373]
[1727821262029,4.06337,2461.1,2460.6,4.89373]
[1727821262139,4.29464189,2461.1,2460.6,4.89373]
[1727821262890,4.5566392,2461.0,2460.6,0.8298]
[1727821263069,0.7409,2460.9,2460.2,0.8298]
[1727821263281,0.7409,2460.9,2460.5,4.06418]
[1727821263457,0.23127189,2460.8,2460.5,4.06418]
[1727821264161,0.23127189,2460.8,2460.4,8.12852]
[1727821264366,0.23127189,2460.8,2460.4,4.06423]
[1727821264572,0.23127189,2460.8,2460.5,4.0642]
[1727821265078,0.23127189,2460.8,2460.6,4.06404]
[1727821265250,4.5566392,2461.0,2460.4,8.12848]
[1727821265457,0.7409,2460.5,2460.0,4.06496]
[1727821266100,0.23127189,2460.4,2460.0,4.06496]
[1727821266601,4.06482,2460.2,2459.5,4.06583]
[1727821266784,8.12996,2460.1,2459.4,8.61033949]
[1727821266991,4.29511387,2460.1,2459.5,4.06577]
[1727821267301,4.0653,2459.9,2459.4,4.89577]
[1727821267463,4.0653,2459.9,2459.4,4.06597]
[1727821267660,0.2300024,2459.8,2459.5,4.06585]
[1727821267965,4.06571,2459.6,2458.8,4.54442949]
[1727821268161,4.06531,2459.9,2459.3,4.06608]
[1727821268363,0.2300024,2459.5,2459.4,7.86197784]
[1727821268601,8.30920519,2460.3,2459.7,4.06548]
[1727821268806,5.30920519,2460.3,2459.7,4.06548]
[1727821269007,0.2298252,2460.2,2459.7,4.06548]
[1727821269205,0.2298252,2460.2,2459.6,4.06553]
[1727821269388,4.0649,2460.1,2459.6,4.06553]
[1727821269596,5.02529304,2460.1,2459.6,4.06553]
[1727821269767,0.22978197,2460.0,2459.6,8.13114]
[1727821269967,0.22978197,2460.0,2459.6,4.06553]
[1727821270290,4.06547,2459.8,2459.2,4.06625]
[1727821270492,0.88717,2459.7,2459.2,4.06625]
[1727821270698,5.18253655,2459.7,2459.2,4.06625]
[1727821270994,1.11698655,2459.7,2459.2,4.06625]
[1727821271302,1.11698655,2459.7,2459.2,8.13252]
[1727821271508,1.11698655,2459.7,2459.3,4.06617]
[1727821271665,0.22981655,2459.7,2459.6,4.0657]
[1727821272084,4.06474,2460.2,2459.6,4.0657]
[1727821272300,4.06535,2459.9,2459.3,8.13222]
[1727821272503,4.06518,2460.0,2459.3,4.06611]
[1727821272702,0.22980791,2459.8,2459.4,4.06602]
[1727821272909,0.7409,2459.8,2459.3,4.06611]
[1727821273112,0.22980791,2459.7,2459.1,4.06643]
[1727821273312,4.06574,2459.6,2459.1,4.06643]
[1727821273676,0.7334257,2459.7,2459.2,4.06633]
[1727821273677,0.22976468,2459.5,2459.2,4.06633]
[1727821273868,0.22976468,2459.5,2459.1,4.06643]
[1727821274087,0.50361779,2459.7,2459.1,4.06643]
[1727821274303,0.22976468,2459.4,2459.1,4.06643]
[1727821274525,4.06571,2459.6,2459.1,4.06643]
[1727821274725,0.22976468,2459.3,2459.2,4.06635]
[1727821275007,0.53099678,2459.6,2459.2,4.06635]
[1727821275175,0.22976468,2459.3,2459.2,4.06636]
[1727821275383,0.53099678,2459.6,2459.2,4.06636]
[1727821275569,0.22976468,2459.3,2459.2,4.06636]
[1727821275781,0.53099678,2459.6,2459.2,4.06636]
[1727821275969,0.22976468,2459.3,2459.2,4.06636]
[1727821276279,0.22976468,2459.3,2459.1,4.06642]
[1727821276599,0.53099678,2459.6,2459.1,4.06638]
[1727821276787,0.22976468,2459.2,2459.1,4.06638]
[1727821276980,0.53099678,2459.6,2458.9,7.78134949]
[1727821276981,4.06612,2459.4,2458.9,7.78134949]
[1727821277182,4.59678678,2459.6,2458.7,4.47132949]
[1727821277183,0.22976468,2459.2,2458.7,4.47132949]
[1727821277497,0.22906012,2459.1,2458.9,4.06677]
[1727821277694,0.22906012,2459.1,2458.6,4.06728]
[1727821277905,4.06647,2459.2,2458.6,4.06723]
[1727821278102,0.22906012,2459.0,2458.7,4.0671]
[1727821278407,0.480737,2459.1,2458.7,4.0671]
[1727821278609,0.22906012,2458.9,2458.7,4.0671]
[1727821278773,0.480737,2459.1,2458.7,4.0671]
[1727821278973,0.22906012,2458.8,2458.7,4.0671]
[1727821279203,0.480737,2459.1,2458.7,4.0671]
[1727821279512,0.22906012,2459.0,2458.9,4.06682]
[1727821279723,0.22906012,2459.0,2458.6,4.06724]
[1727821279873,0.22906012,2459.0,2458.2,4.06794]
[1727821279874,4.06705,2458.8,2458.2,4.0679]
[1727821280077,4.06705,2458.8,2458.3,4.06784]
[1727821280273,0.22906012,2458.7,2458.4,4.06767]
[1727821280501,0.22906012,2458.7,2458.4,8.13527]
[1727821280679,0.7409,2458.9,2458.6,4.06735]
[1727821280902,0.7409,2458.9,2458.4,4.06762]
[1727821281224,0.7409,2458.9,2458.6,4.06732]
[1727821281743,3.7409,2459.2,2458.7,4.0671]
[1727821282052,1.447529,2459.2,2458.9,4.06682]
[1727821282340,4.06597,2459.5,2458.9,7.78144949]
[1727821282341,8.87284,2459.5,2458.9,7.78144949]
[1727821282494,4.80687,2459.5,2459.0,4.06668]
[1727821282833,5.74725368,2459.5,2459.0,4.06668]
[1727821283010,5.74725368,2459.5,2458.9,8.13355]
[1727821283195,5.74725368,2459.5,2458.9,8.1335]
[1727821283398,4.06612,2459.4,2458.9,4.06673]
[1727821283594,0.98133737,2459.4,2458.9,4.06673]
[1727821284309,4.80687,2459.5,2459.0,4.06659]
[1727821284823,4.80687,2459.5,2458.9,4.06673]
[1727821285026,4.06605,2459.4,2458.9,4.06673]
[1727821285429,4.80687,2459.5,2459.0,4.06664]
[1727821285655,0.7409,2459.5,2459.1,4.0665]
[1727821285850,3.0,2459.7,2459.1,3.71462949]
[1727821286028,4.818622,2459.7,2459.4,4.06603]
[1727821286846,4.818622,2459.7,2459.3,4.06619]
[1727821287239,8.884182,2459.7,2459.2,4.82305]
[1727821287567,8.884182,2459.7,2459.2,4.06635]
[1727821288156,12.949812,2459.7,2459.2,4.06635]
[1727821288388,2.1070712,2459.6,2459.2,4.06635]
[1727821288559,6.1727712,2459.6,2459.2,4.06635]
[1727821288756,7.38,2460.1,2459.5,3.71462949]
[1727821289066,0.7409,2460.1,2459.3,7.78072949]
[1727821289362,0.7409,2460.1,2459.3,4.0661]
[1727821289569,4.06548,2459.8,2459.3,4.0661]
[1727821289733,0.67207061,2459.7,2459.3,4.0661]
[1727821290071,4.80669,2459.6,2459.1,4.83723]
[1727821290257,0.7409,2459.6,2459.1,4.83723]
[1727821290647,4.06586,2459.5,2459.1,4.06643]
[1727821290858,0.480676,2459.4,2459.2,4.06626]
[1727821291036,0.7409,2459.6,2459.2,4.06626]
[1727821291656,3.0,2459.8,2459.4,4.06595]
[1727821291861,3.0,2459.8,2459.3,7.78073949]
[1727821292205,7.06549,2459.8,2459.3,7.78073949]
[1727821293059,0.7409,2459.9,2459.6,4.06562]
[1727821293264,4.0649,2460.1,2459.6,4.06562]
[1727821293265,8.87078,2460.1,2459.6,4.06562]
[1727821293458,4.06512,2460.0,2459.5,7.78047949]
[1727821294350,1.14739,2460.1,2459.5,3.71462949]
[1727821294549,0.229112,2459.9,2459.7,7.78006949]
[1727821294749,0.7409,2460.1,2459.7,7.78006949]
[1727821294961,11.44439,2460.4,2459.8,4.91743717]
[1727821295159,4.80278631,2460.4,2459.9,7.77969949]
[1727821295393,4.80278631,2460.4,2460.0,4.06501]
[1727821295547,4.80278631,2460.4,2460.0,4.14623831]
[1727821295548,0.73839631,2460.4,2460.0,4.14623831]
[1727821295750,4.80491,2460.7,2460.1,4.06479]
[1727821295950,4.80491,2460.7,2460.2,4.06467]
[1727821295951,4.80489,2460.7,2460.2,4.06467]
[1727821296147,3.0,2460.6,2460.2,4.06467]
[1727821296369,7.0642,2460.6,2460.1,4.06479]
[1727821296572,1.186908,2460.5,2460.1,4.06479]
[1727821297063,3.0,2460.6,2460.1,7.77941949]
[1727821297266,4.06412,2460.6,2460.1,4.06479]
[1727821297862,4.06412,2460.6,2460.1,4.06478]
[1727821298393,4.06412,2460.6,2460.0,4.06497]
[1727821298574,4.06412,2460.6,2460.1,4.06478]
[1727821299157,5.989005,2460.6,2460.1,4.06478]
[1727821299379,5.989005,2460.6,2460.2,4.06467]
[1727821299583,5.989005,2460.6,2460.1,4.06478]
[1727821300298,10.053175,2460.6,2460.1,4.06478]
[1727821300720,5.989005,2460.6,2460.1,8.12955]
[1727821300944,4.924885,2460.6,2460.2,4.06462]
[1727821301591,8.988935,2460.6,2460.1,4.06477]
[1727821301824,4.0638,2460.8,2460.4,0.7708]
[1727821302136,4.06471,2460.2,2459.9,0.7708]
[1727821302300,4.06471,2460.2,2459.8,4.06535]
[1727821302623,12.1848,2460.7,2459.9,4.06511]
[1727821302624,4.06437,2460.5,2459.9,4.06511]
[1727821302832,4.06453,2460.4,2459.9,4.06511]
[1727821303191,8.12917,2460.3,2459.8,4.06535]
[1727821303450,4.06454,2460.3,2459.9,4.06518]
[1727821303589,4.06454,2460.3,2459.8,4.06535]
[1727821303904,4.06454,2460.3,2459.8,8.13063]
[1727821304101,4.06431,2460.5,2459.9,4.0651]
[1727821304102,4.0644,2460.4,2459.9,4.0651]
[1727821304304,4.96711789,2460.4,2459.9,4.0651]
[1727821305735,4.06513,2460.0,2459.5,4.06575]
[1727821306100,4.06481,2460.2,2459.6,4.06568]
[1727821306302,4.06489,2460.1,2459.6,4.06568]
[1727821306739,4.80545,2460.3,2459.8,4.06536]
[1727821306945,0.7409,2460.3,2459.9,4.06519]
[1727821307346,4.80545,2460.3,2459.9,4.06519]